[Event "FIDE World Cup G12-B 2024"]
[Site "Batumi"]
[Date "2024.06.25"]
[Round "3.1"]
[White "Xu, Luna Yuexiu"]
[Black "Gunawardhana, Devindya Oshini"]
[Result "0-1"]
[ECO "C48"]
[WhiteElo "1761"]
[BlackElo "1980"]
[Annotator "NA RC"]
[PlyCount "68"]
[EventDate "2024.06.23"]
[EventType "swiss"]
[EventCountry "GEO"]
[SourceTitle "playchess.com"]
[Source "ChessBase"]
[SourceQuality "1"]
[TimeControl "5400+30"]

1. e4 {[%emt 0:00:06]} e5 {[%emt 0:00:07]} 2. Nf3 {[%emt 0:00:07]} Nc6 {[%emt 0:00:07]} 3. Nc3 {[%emt 0:00:14]} Nf6 {[%emt 0:00:11]} 4. Bb5 {[%emt 0:00:34]} Bd6 {[%emt 0:00:10]} 5. d4 {[%emt 0:04:19]} exd4 {[%emt 0:00:40]} 6. Nxd4 {[%emt 0:00:19]} O-O {[%emt 0:00:56]} 7. O-O {[%emt 0:01:54]} Nxd4 {[%emt 0:00:34]} 8. Qxd4 {[%emt 0:01:11]} Re8 {[%emt 0:00:34]} 9. Re1 {[%emt 0:04:14]} Be5 {[%emt 0:05:12]} 10. Qd3 {[%emt 0:04:06]} c6 {[%emt 0:00:28]} 11. Ba4 {[%emt 0:01:22]} b5 {[%emt 0:02:02]} 12. Bb3 {[%emt 0:00:57]} a5 {[%emt 0:01:05]} 13. a4 {[%emt 0:07:08]} b4 {[%emt 0:00:18]} 14. Na2 $2 {[%emt 0:01:53]} (14. Ne2 $17) 14... Ba6 {[%emt 0:01:16]} 15. Qf3 {[%emt 0:05:44]} Qb8 {[%emt 0:12:48]} 16. Kh1 {[%emt 0:12:01]} h6 {[%emt 0:08:31]} 17. Rb1 {[%emt 0:06:10]} c5 {[%emt 0:13:08]} ({Not} 17... Bxh2 18. g3 c5 19. Bf4 $17 (19. Kxh2 c4 $17)) 18. c4 {[%emt 0:04:20]} Bb7 $19 {[%emt 0:00:09]} (18... Bxh2 19. g3 Bxg3 20. Qxg3 Qxg3 21. fxg3 $19) 19. Bc2 {[%emt 0:00:45]} Bxh2 {[%emt 0:06:51]} 20. g3 {[%emt 0:05:45]} b3 {[%emt 0:00:05]} 21. Bxb3 {[%emt 0:08:27]} Rxe4 {[%emt 0:00:18]} 22. Be3 {[%emt 0:29:54]} Rh4 {[%emt 0:03:47]} 23. Bd1 {[%emt 0:00:00]} Bxf3+ {[%emt 0:00:21]} 24. Bxf3 {[%emt 0:00:00]} Bxg3+ {[%emt 0:00:01]} 25. Kg1 {[%emt 0:00:00]} Bh2+ {[%emt 0:00:35]} 26. Kf1 {[%emt 0:00:00]} Ra6 {[%emt 0:00:21]} 27. Bxc5 {[%emt 0:00:00]} Qb3 {[%emt 0:00:09]} 28. Bg2 {[%emt 0:00:00]} Qxc4+ {[%emt 0:00:21]} 29. Re2 {[%emt 0:03:30]} Qxc5 {[%emt 0:00:03]} 30. Rc1 {[%emt 0:00:00]} Qg5 {[%emt 0:00:09]} 31. b3 {[%emt 0:00:00]} Rg4 {[%emt 0:00:14]} 32. f3 {[%emt 0:00:00]} Rd4 {[%emt 0:00:27]} 33. Rec2 {[%emt 0:00:00]} Qe3 {[%emt 0:00:25]} 34. Rf2 {[%emt 0:00:00]} Rd2 {[%emt 0:45:07]} 0-1

[Event "FIDE World Cup G12-B 2024"]
[Site "Batumi"]
[Date "2024.06.25"]
[Round "3.2"]
[White "Amanzhol, Khanzada"]
[Black "Pratitee Bordoloi"]
[Result "1-0"]
[ECO "B13"]
[WhiteElo "1685"]
[BlackElo "1796"]
[Annotator "NA RC"]
[PlyCount "163"]
[EventDate "2024.06.23"]
[EventType "swiss"]
[EventCountry "GEO"]
[SourceTitle "playchess.com"]
[Source "ChessBase"]
[SourceQuality "1"]
[TimeControl "5400+30"]

1. e4 {[%emt 0:00:32]} c6 {[%emt 0:00:05]} 2. d4 {[%emt 0:00:09]} d5 {[%emt 0:00:06]} 3. exd5 {[%emt 0:00:21]} cxd5 {[%emt 0:00:08]} 4. Bd3 {[%emt 0:00:17]} Nc6 {[%emt 0:00:09]} 5. c3 {[%emt 0:00:10]} Nf6 {[%emt 0:00:06]} 6. h3 {[%emt 0:00:14]} e5 {[%emt 0:00:08]} 7. dxe5 {[%emt 0:01:10]} Nxe5 {[%emt 0:00:08]} 8. Nf3 {[%emt 0:01:23]} Nxd3+ {[%emt 0:01:21]} 9. Qxd3 {[%emt 0:00:35]} Bd6 {[%emt 0:02:59]} 10. O-O {[%emt 0:03:55]} O-O {[%emt 0:00:15]} 11. Nd4 {[%emt 0:02:56]} Ne4 {[%emt 0:03:31]} 12. Nd2 {[%emt 0:12:55]} Re8 {[%emt 0:03:18]} 13. Re1 {[%emt 0:04:08]} Nc5 {[%emt 0:03:07]} 14. Rxe8+ {[%emt 0:00:12]} Qxe8 {[%emt 0:00:07]} 15. Qe2 {[%emt 0:00:29]} Qxe2 {[%emt 0:01:12]} 16. Nxe2 {[%emt 0:00:04]} Bf5 {[%emt 0:01:32]} 17. Nd4 {[%emt 0:01:16]} Bg6 {[%emt 0:01:46]} 18. N2f3 {[%emt 0:04:39]} Nd3 {[%emt 0:01:59]} 19. b3 {[%emt 0:09:15]} Rc8 {[%emt 0:06:11]} 20. Bd2 {[%emt 0:01:53]} Nc5 {[%emt 0:05:55]} 21. Nh4 {[%emt 0:05:19]} Bd3 {[%emt 0:03:33]} 22. Nhf5 {[%emt 0:00:38]} Bf8 {[%emt 0:00:53]} 23. Ne3 {[%emt 0:00:52]} Rd8 {[%emt 0:04:07]} 24. Bc1 {[%emt 0:01:56]} Ne6 {[%emt 0:04:40]} 25. Bb2 {[%emt 0:00:54]} Nxd4 {[%emt 0:02:50]} 26. cxd4 {[%emt 0:00:01]} g6 {[%emt 0:00:47]} 27. Rc1 {[%emt 0:00:33]} Bb5 {[%emt 0:01:22]} 28. Ng4 {[%emt 0:11:52]} Bc6 {[%emt 0:01:36]} 29. Ne5 {[%emt 0:00:57]} Rc8 {[%emt 0:00:23]} 30. Ng4 {[%emt 0:02:59]} h5 {[%emt 0:00:46]} 31. Nf6+ {[%emt 0:01:30]} Kh8 {[%emt 0:01:21]} 32. Nxd5 {[%emt 0:00:10]} Rd8 {[%emt 0:01:46]} 33. Ne3 {[%emt 0:01:52]} Bg7 {[%emt 0:00:35]} 34. Rc2 {[%emt 0:02:42]} Rd7 {[%emt 0:04:08]} 35. Rd2 {[%emt 0:01:18]} Kg8 {[%emt 0:01:36]} 36. d5 {[%emt 0:00:57]} Bb5 {[%emt 0:05:01]} 37. Bxg7 {[%emt 0:00:44]} Kxg7 {[%emt 0:00:06]} 38. g3 {[%emt 0:01:41]} Ba6 {[%emt 0:02:46]} 39. Kg2 {[%emt 0:00:44]} b6 {[%emt 0:00:28]} 40. Kf3 {[%emt 0:00:30]} f5 {[%emt 0:02:45]} 41. Kf4 {[%emt 0:02:32]} Kf6 {[%emt 0:00:40]} 42. h4 {[%emt 0:00:06]} Bb7 {[%emt 0:00:36]} 43. d6 {[%emt 0:02:00]} b5 {[%emt 0:03:09]} 44. Nd5+ {[%emt 0:00:40]} Bxd5 {[%emt 0:00:52]} 45. Rxd5 {[%emt 0:00:02]} a6 {[%emt 0:00:58]} 46. Rd4 {[%emt 0:00:24]} Ke6 {[%emt 0:03:09]} 47. Rd2 {[%emt 0:04:36]} Kf6 {[%emt 0:00:35]} 48. Rd3 {[%emt 0:00:06]} Ke6 {[%emt 0:01:05]} 49. Rd4 {[%emt 0:00:07]} Kf6 {[%emt 0:00:32]} 50. Ke3 {[%emt 0:01:38]} Ke5 {[%emt 0:00:45]} 51. Kd3 {[%emt 0:00:15]} Rxd6 {[%emt 0:05:55]} 52. Rxd6 {[%emt 0:00:07]} Kxd6 {[%emt 0:00:04]} 53. Kd4 {[%emt 0:00:06]} a5 {[%emt 0:00:04]} 54. a3 {[%emt 0:00:45]} f4 {[%emt 0:02:37]} 55. gxf4 {[%emt 0:00:15]} Ke6 {[%emt 0:00:10]} 56. Ke4 {[%emt 0:01:39]} Kf6 {[%emt 0:01:05]} 57. b4 {[%emt 0:00:08]} a4 {[%emt 0:03:13]} 58. f5 {[%emt 0:01:29]} gxf5+ {[%emt 0:02:13]} 59. Kf4 {[%emt 0:00:05]} Ke6 {[%emt 0:01:07]} 60. Kg5 {[%emt 0:00:05]} Kd5 {[%emt 0:00:50]} 61. Kxh5 {[%emt 0:00:13]} Kc4 {[%emt 0:00:10]} 62. Kg5 {[%emt 0:00:12]} Kb3 {[%emt 0:00:12]} 63. h5 {[%emt 0:00:03]} Kxa3 {[%emt 0:00:06]} 64. h6 {[%emt 0:00:04]} Kb2 {[%emt 0:00:11]} 65. h7 {[%emt 0:00:10]} a3 {[%emt 0:00:12]} 66. h8=Q+ {[%emt 0:00:06]} Kb1 {[%emt 0:00:06]} 67. Kxf5 {[%emt 0:00:32]} a2 {[%emt 0:00:13]} 68. Ke4 {[%emt 0:00:09]} a1=Q {[%emt 0:00:20]} 69. Qxa1+ {[%emt 0:00:05]} Kxa1 {[%emt 0:00:10]} 70. Kd4 {[%emt 0:00:11]} Kb2 {[%emt 0:00:08]} 71. f4 {[%emt 0:00:06]} Kb3 {[%emt 0:00:04]} 72. Kc5 {[%emt 0:00:04]} Kc3 {[%emt 0:00:10]} 73. f5 {[%emt 0:00:04]} Kb3 {[%emt 0:00:11]} 74. f6 {[%emt 0:00:05]} Ka3 {[%emt 0:00:06]} 75. f7 {[%emt 0:00:05]} Kb3 {[%emt 0:00:16]} 76. f8=Q {[%emt 0:00:09]} Ka4 {[%emt 0:00:31]} 77. Qa8+ {[%emt 0:00:29]} Kb3 {[%emt 0:00:40]} 78. Kxb5 {[%emt 0:00:07]} Kc3 {[%emt 0:00:05]} 79. Kc5 {[%emt 0:00:05]} Kb2 {[%emt 0:00:05]} 80. Kc4 {[%emt 0:00:08]} Kc2 {[%emt 0:00:05]} 81. Qa2+ {[%emt 0:00:06]} Kd1 {[%emt 0:00:06]} 82. Kd3 {[%emt 0:00:05]} 1-0

[Event "FIDE World Cup G12-B 2024"]
[Site "Batumi"]
[Date "2024.06.25"]
[Round "3.3"]
[White "Abylaykyzy, Bibisara"]
[Black "Pavithra R V"]
[Result "1-0"]
[ECO "B23"]
[WhiteElo "1577"]
[BlackElo "1614"]
[Annotator "NA RC"]
[PlyCount "95"]
[EventDate "2024.06.23"]
[EventType "swiss"]
[EventCountry "GEO"]
[SourceTitle "playchess.com"]
[Source "ChessBase"]
[SourceQuality "1"]
[TimeControl "5400+30"]

1. e4 {[%emt 0:00:02]} c5 {[%emt 0:00:06]} 2. Nc3 {[%emt 0:00:06]} Nc6 {[%emt 0:00:05]} 3. Bb5 {[%emt 0:00:05]} Nd4 {[%emt 0:01:12]} 4. Bc4 {[%emt 0:00:09]} g6 {[%emt 0:00:46]} 5. Nf3 {[%emt 0:00:14]} Bg7 {[%emt 0:00:06]} 6. Nxd4 {[%emt 0:00:04]} cxd4 {[%emt 0:01:21]} 7. Qf3 {[%emt 0:03:17]} e6 {[%emt 0:04:26]} 8. Nb5 {[%emt 0:00:07]} Be5 {[%emt 0:01:07]} 9. c3 {[%emt 0:04:29]} dxc3 {[%emt 0:00:53]} 10. d4 {[%emt 0:01:26]} a6 {[%emt 0:01:51]} 11. dxe5 {[%emt 0:04:19]} axb5 {[%emt 0:00:07]} 12. Bb3 {[%emt 0:00:04]} cxb2 {[%emt 0:01:22]} 13. Bxb2 {[%emt 0:00:07]} Ne7 {[%emt 0:03:20]} 14. O-O {[%emt 0:00:25]} O-O {[%emt 0:00:53]} 15. Qd3 {[%emt 0:01:34]} Qb6 {[%emt 0:01:27]} 16. Bd4 {[%emt 0:03:22]} Qa6 {[%emt 0:05:12]} 17. Bc5 {[%emt 0:01:44]} Re8 {[%emt 0:00:06]} 18. Qf3 {[%emt 0:00:15]} Nc6 {[%emt 0:01:48]} 19. Qf6 {[%emt 0:00:27]} Qa5 {[%emt 0:00:10]} 20. Rfd1 {[%emt 0:02:43]} Qc3 {[%emt 0:03:12]} 21. Bd6 {[%emt 0:01:17]} Nd4 {[%emt 0:01:28]} 22. Rab1 {[%emt 0:03:03]} Ra6 {[%emt 0:02:53]} 23. Kh1 {[%emt 0:01:20]} Nxb3 {[%emt 0:01:05]} 24. Rxb3 {[%emt 0:01:24]} Rxd6 {[%emt 0:00:15]} 25. Rg1 {[%emt 0:00:12]} Qd4 {[%emt 0:00:15]} 26. Rf3 {[%emt 0:00:06]} Rf8 {[%emt 0:01:06]} 27. exd6 {[%emt 0:00:07]} Qxd6 {[%emt 0:00:08]} 28. Qg5 {[%emt 0:03:43]} f5 {[%emt 0:01:03]} 29. exf5 {[%emt 0:01:28]} exf5 {[%emt 0:00:07]} 30. Rc3 {[%emt 0:00:48]} b6 {[%emt 0:00:31]} 31. Qc1 {[%emt 0:04:05]} Bb7 {[%emt 0:01:32]} 32. Rd1 {[%emt 0:00:32]} Qe6 {[%emt 0:00:50]} 33. Re3 {[%emt 0:00:57]} Qf7 {[%emt 0:09:20]} 34. Qd2 {[%emt 0:03:11]} Bc6 {[%emt 0:00:31]} 35. Rde1 {[%emt 0:02:47]} f4 {[%emt 0:06:17]} 36. Re7 {[%emt 0:04:18]} Qf6 {[%emt 0:01:12]} 37. f3 {[%emt 0:00:44]} Rf7 {[%emt 0:04:33]} 38. R7e5 {[%emt 0:04:23]} Kg7 {[%emt 0:00:44]} 39. Qf2 {[%emt 0:01:38]} g5 {[%emt 0:01:14]} 40. Qxb6 {[%emt 0:25:50]} g4 {[%emt 0:00:22]} 41. Qf2 {[%emt 0:00:36]} gxf3 {[%emt 0:00:58]} 42. gxf3 {[%emt 0:01:09]} d6 {[%emt 0:02:16]} 43. Rg1+ {[%emt 0:02:55]} Kf8 {[%emt 0:00:15]} 44. Reg5 {[%emt 0:01:15]} Qc3 {[%emt 0:00:19]} 45. Rg8+ {[%emt 0:01:10]} Ke7 {[%emt 0:00:06]} 46. Re1+ {[%emt 0:00:06]} Kf6 {[%emt 0:00:54]} 47. Qh4+ {[%emt 0:00:09]} Kf5 {[%emt 0:00:11]} 48. Qg5# {[%emt 0:00:06]} 1-0

[Event "FIDE World Cup G12-B 2024"]
[Site "Batumi"]
[Date "2024.06.25"]
[Round "3.4"]
[White "Sreekarthika Velmurugan"]
[Black "Siddhi Rao"]
[Result "1-0"]
[ECO "C54"]
[WhiteElo "1838"]
[BlackElo "1601"]
[Annotator "NA RC"]
[PlyCount "113"]
[EventDate "2024.06.23"]
[EventType "swiss"]
[EventCountry "GEO"]
[SourceTitle "playchess.com"]
[Source "ChessBase"]
[SourceQuality "1"]
[TimeControl "5400+30"]

1. e4 {[%emt 0:02:38]} e5 {[%emt 0:00:08]} 2. Bc4 {[%emt 0:00:04]} Nf6 {[%emt 0:00:04]} 3. d3 {[%emt 0:00:04]} Nc6 {[%emt 0:00:07]} 4. Nf3 {[%emt 0:00:07]} Bc5 {[%emt 0:00:05]} 5. c3 {[%emt 0:00:04]} d6 {[%emt 0:00:04]} 6. Nbd2 {[%emt 0:00:07]} O-O {[%emt 0:00:08]} 7. O-O {[%emt 0:01:00]} a5 {[%emt 0:00:04]} 8. h3 {[%emt 0:03:35]} h6 {[%emt 0:00:07]} 9. Re1 {[%emt 0:00:12]} Be6 {[%emt 0:02:51]} 10. Bb3 {[%emt 0:01:11]} Qb8 {[%emt 0:02:00]} 11. Nf1 {[%emt 0:03:51]} Qa7 {[%emt 0:10:41]} 12. Be3 {[%emt 0:01:13]} Rfe8 {[%emt 0:06:09]} 13. Bc2 {[%emt 0:08:27]} Bxe3 {[%emt 0:11:10]} 14. Nxe3 {[%emt 0:00:28]} d5 {[%emt 0:02:42]} 15. Nh4 {[%emt 0:09:03]} Rad8 {[%emt 0:07:28]} 16. Qf3 {[%emt 0:09:26]} d4 {[%emt 0:06:44]} 17. Nef5 {[%emt 0:00:34]} Kh7 {[%emt 0:00:38]} 18. Ba4 {[%emt 0:05:20]} dxc3 {[%emt 0:16:17]} 19. bxc3 {[%emt 0:00:11]} Qc5 {[%emt 0:01:52]} 20. d4 {[%emt 0:08:33]} exd4 {[%emt 0:02:54]} 21. cxd4 {[%emt 0:00:04]} Qb4 {[%emt 0:00:35]} 22. Bc2 {[%emt 0:05:23]} Bxf5 {[%emt 0:12:56]} 23. Nxf5 {[%emt 0:00:47]} Kh8 {[%emt 0:01:47]} 24. Qg3 {[%emt 0:06:48]} Qf8 {[%emt 0:02:32]} 25. Rad1 {[%emt 0:09:34]} g6 {[%emt 0:01:24]} 26. Qh4 {[%emt 0:06:52]} Ng8 {[%emt 0:00:19]} 27. d5 {[%emt 0:05:13]} Nb4 {[%emt 0:02:41]} 28. Ne3 {[%emt 0:04:32]} Qc5 {[%emt 0:02:03]} 29. Bb1 {[%emt 0:01:06]} Kg7 {[%emt 0:01:38]} 30. Qg3 {[%emt 0:02:14]} Kf8 {[%emt 0:00:48]} 31. Rc1 {[%emt 0:00:24]} Qd6 {[%emt 0:00:28]} 32. Qxd6+ {[%emt 0:04:19]} cxd6 {[%emt 0:00:40]} 33. Nc4 {[%emt 0:00:08]} b5 {[%emt 0:05:24]} 34. Nxa5 {[%emt 0:01:30]} Nf6 {[%emt 0:01:05]} 35. a3 {[%emt 0:01:36]} Na6 {[%emt 0:00:19]} 36. Bd3 {[%emt 0:00:08]} Nc5 {[%emt 0:00:06]} 37. Bxb5 {[%emt 0:00:12]} Rxe4 {[%emt 0:00:24]} 38. Rxe4 {[%emt 0:00:54]} Nfxe4 {[%emt 0:00:11]} 39. f3 {[%emt 0:00:39]} Nf6 {[%emt 0:00:11]} 40. Bc6 {[%emt 0:00:17]} Rb8 {[%emt 0:00:37]} 41. Nc4 {[%emt 0:00:06]} Nd3 {[%emt 0:01:07]} 42. Rd1 {[%emt 0:00:21]} Rb3 {[%emt 0:00:36]} 43. a4 {[%emt 0:00:25]} Ke7 {[%emt 0:00:52]} 44. a5 {[%emt 0:00:05]} Nb4 {[%emt 0:00:51]} 45. Bb7 {[%emt 0:01:12]} Kd7 {[%emt 0:00:30]} 46. a6 {[%emt 0:00:12]} Kc7 {[%emt 0:00:14]} 47. Ra1 {[%emt 0:01:07]} Nxa6 {[%emt 0:00:17]} 48. Bxa6 {[%emt 0:00:15]} Nxd5 {[%emt 0:00:06]} 49. Rc1 {[%emt 0:00:36]} Nc3 {[%emt 0:00:23]} 50. Nd2 {[%emt 0:01:12]} Kb6 {[%emt 0:00:29]} 51. Nxb3 {[%emt 0:00:09]} Kxa6 {[%emt 0:00:09]} 52. Rxc3 {[%emt 0:00:05]} d5 {[%emt 0:00:09]} 53. Nd4 {[%emt 0:00:05]} Ka7 {[%emt 0:00:05]} 54. Kf2 {[%emt 0:00:03]} Ka8 {[%emt 0:00:08]} 55. Rb3 {[%emt 0:00:05]} f5 {[%emt 0:00:07]} 56. Nc6 {[%emt 0:00:04]} d4 {[%emt 0:00:05]} 57. Rb8# {[%emt 0:00:03]} 1-0

[Event "FIDE World Cup G12-B 2024"]
[Site "Batumi"]
[Date "2024.06.25"]
[Round "3.5"]
[White "Bassari, Senem Gul"]
[Black "Vazquez Sanchez, Antia"]
[Result "1-0"]
[ECO "B43"]
[WhiteElo "1768"]
[BlackElo "1607"]
[Annotator "NA RC"]
[PlyCount "147"]
[EventDate "2024.06.23"]
[EventType "swiss"]
[EventCountry "GEO"]
[SourceTitle "playchess.com"]
[Source "ChessBase"]
[SourceQuality "1"]
[TimeControl "5400+30"]

1. e4 {[%emt 0:00:18]} c5 {[%emt 0:00:16]} 2. Nf3 {[%emt 0:00:09]} e6 {[%emt 0:00:11]} 3. d4 {[%emt 0:00:10]} cxd4 {[%emt 0:00:05]} 4. Nxd4 {[%emt 0:00:03]} a6 {[%emt 0:00:11]} 5. Nc3 {[%emt 0:00:22]} Qc7 {[%emt 0:00:39]} 6. Qf3 {[%emt 0:00:13]} Nc6 {[%emt 0:00:46]} 7. Nxc6 {[%emt 0:00:49]} bxc6 {[%emt 0:01:33]} 8. Qg3 {[%emt 0:00:43]} Qxg3 {[%emt 0:10:06]} 9. hxg3 {[%emt 0:00:03]} d5 {[%emt 0:12:12]} 10. exd5 {[%emt 0:01:30]} cxd5 {[%emt 0:00:06]} 11. Bd3 {[%emt 0:00:36]} h6 {[%emt 0:07:55]} 12. Bd2 {[%emt 0:00:34]} Nf6 {[%emt 0:04:08]} 13. O-O-O {[%emt 0:01:05]} Ng4 {[%emt 0:05:20]} 14. Rhf1 {[%emt 0:03:47]} Bc5 {[%emt 0:02:54]} 15. Be1 {[%emt 0:30:25]} Bb7 {[%emt 0:04:51]} 16. Be2 {[%emt 0:04:39]} h5 {[%emt 0:03:10]} 17. Kb1 {[%emt 0:06:32]} d4 {[%emt 0:05:50]} 18. Na4 {[%emt 0:08:37]} Ba7 {[%emt 0:00:14]} 19. Rg1 {[%emt 0:12:20]} Rd8 {[%emt 0:10:13]} 20. Bf3 {[%emt 0:10:10]} Bxf3 {[%emt 0:06:07]} 21. gxf3 {[%emt 0:00:02]} Ne5 {[%emt 0:00:12]} 22. f4 {[%emt 0:03:25]} Nf3 {[%emt 0:01:27]} 23. Rh1 {[%emt 0:00:15]} Nxe1 {[%emt 0:01:56]} 24. Rhxe1 {[%emt 0:00:18]} Ke7 {[%emt 0:00:42]} 25. Re5 {[%emt 0:02:49]} Rd5 {[%emt 0:03:53]} 26. Re4 {[%emt 0:04:47]} Rhd8 {[%emt 0:02:56]} 27. Rd3 {[%emt 0:01:24]} Kf6 {[%emt 0:03:23]} 28. b3 {[%emt 0:02:39]} Kf5 {[%emt 0:04:26]} 29. f3 {[%emt 0:01:56]} f6 {[%emt 0:02:19]} 30. Nb2 {[%emt 0:01:18]} g5 {[%emt 0:01:48]} 31. fxg5 {[%emt 0:02:46]} fxg5 {[%emt 0:00:06]} 32. Nc4 {[%emt 0:00:40]} Bb8 {[%emt 0:02:13]} 33. g4+ {[%emt 0:00:42]} hxg4 {[%emt 0:01:14]} 34. Rxg4 {[%emt 0:00:00]} Bf4 {[%emt 0:00:01]} 35. Nd2 {[%emt 0:00:59]} Bxd2 {[%emt 0:01:31]} 36. Rxd2 {[%emt 0:00:02]} d3 {[%emt 0:00:13]} 37. Ra4 {[%emt 0:01:14]} dxc2+ {[%emt 0:00:57]} 38. Rxc2 {[%emt 0:00:01]} Rd1+ {[%emt 0:00:02]} 39. Kb2 {[%emt 0:00:38]} R8d6 {[%emt 0:00:35]} 40. Rc8 {[%emt 0:00:48]} R1d4 {[%emt 0:02:11]} 41. Rf8+ {[%emt 0:00:26]} Ke5 {[%emt 0:00:04]} 42. Ra5+ {[%emt 0:00:29]} R4d5 {[%emt 0:00:05]} 43. Ra4 {[%emt 0:00:37]} Rd4 {[%emt 0:01:48]} 44. Rxd4 {[%emt 0:00:22]} Rxd4 {[%emt 0:00:08]} 45. Ra8 {[%emt 0:00:40]} Rf4 {[%emt 0:01:02]} 46. Rxa6 {[%emt 0:00:29]} Rxf3 {[%emt 0:00:07]} 47. b4 {[%emt 0:00:29]} g4 {[%emt 0:00:09]} 48. Ra8 {[%emt 0:00:32]} g3 {[%emt 0:01:02]} 49. b5 {[%emt 0:00:29]} Rf7 {[%emt 0:00:37]} 50. Rg8 {[%emt 0:00:34]} Kf4 {[%emt 0:00:06]} 51. a4 {[%emt 0:00:26]} e5 {[%emt 0:00:42]} 52. b6 {[%emt 0:00:26]} Rb7 {[%emt 0:00:31]} 53. a5 {[%emt 0:00:15]} e4 {[%emt 0:00:11]} 54. Rg6 {[%emt 0:00:42]} e3 {[%emt 0:00:53]} 55. a6 {[%emt 0:00:32]} Re7 {[%emt 0:00:38]} 56. b7 {[%emt 0:00:23]} Kf5 {[%emt 0:00:59]} 57. Rxg3 {[%emt 0:00:33]} e2 {[%emt 0:00:14]} 58. Rg1 {[%emt 0:00:12]} e1=Q {[%emt 0:01:22]} 59. Rxe1 {[%emt 0:00:06]} Rxe1 {[%emt 0:00:00]} 60. b8=Q {[%emt 0:00:09]} Re2+ {[%emt 0:00:00]} 61. Kc3 {[%emt 0:00:18]} Re3+ {[%emt 0:00:00]} 62. Kd2 {[%emt 0:00:06]} Re5 {[%emt 0:00:23]} 63. Qxe5+ {[%emt 0:00:07]} Kxe5 {[%emt 0:00:07]} 64. a7 {[%emt 0:00:02]} Kd4 {[%emt 0:00:16]} 65. a8=Q {[%emt 0:00:17]} Ke5 {[%emt 0:00:03]} 66. Qa4 {[%emt 0:00:13]} Kd5 {[%emt 0:00:10]} 67. Kd3 {[%emt 0:00:05]} Ke5 {[%emt 0:00:09]} 68. Qd4+ {[%emt 0:00:04]} Kf5 {[%emt 0:00:05]} 69. Qe4+ {[%emt 0:00:04]} Kf6 {[%emt 0:01:10]} 70. Kd4 {[%emt 0:00:07]} Kg5 {[%emt 0:00:30]} 71. Ke5 {[%emt 0:00:07]} Kh6 {[%emt 0:00:43]} 72. Kf6 {[%emt 0:00:14]} Kh5 {[%emt 0:00:14]} 73. Qd4 {[%emt 0:00:05]} Kh6 {[%emt 0:00:20]} 74. Qh4# {[%emt 0:00:12]} 1-0

[Event "FIDE World Cup G12-B 2024"]
[Site "Batumi"]
[Date "2024.06.25"]
[Round "3.6"]
[White "Lu, Yichen"]
[Black "Li, Sophie"]
[Result "0-1"]
[ECO "C29"]
[WhiteElo "1561"]
[BlackElo "1764"]
[Annotator "NA RC"]
[PlyCount "72"]
[EventDate "2024.06.23"]
[EventType "swiss"]
[EventCountry "GEO"]
[SourceTitle "playchess.com"]
[Source "ChessBase"]
[SourceQuality "1"]
[TimeControl "5400+30"]

1. e4 {[%emt 0:00:02]} e5 {[%emt 0:00:13]} 2. Nc3 {[%emt 0:00:05]} Nf6 {[%emt 0:00:24]} 3. f4 {[%emt 0:00:07]} d5 {[%emt 0:00:27]} 4. fxe5 {[%emt 0:00:25]} Nxe4 {[%emt 0:00:22]} 5. Qf3 {[%emt 0:00:28]} Nxc3 {[%emt 0:01:24]} 6. dxc3 {[%emt 0:00:28]} Be6 {[%emt 0:02:20]} 7. Qg3 {[%emt 0:02:36]} Nc6 {[%emt 0:03:19]} 8. Nf3 {[%emt 0:00:51]} Qd7 {[%emt 0:03:10]} 9. Be3 {[%emt 0:01:15]} Ne7 {[%emt 0:06:18]} 10. Nd4 {[%emt 0:05:32]} Nf5 {[%emt 0:02:36]} 11. Nxf5 {[%emt 1:24:11]} Bxf5 {[%emt 0:00:15]} 12. Qf2 {[%emt 0:00:00]} a6 {[%emt 0:03:28]} 13. Bd3 {[%emt 0:00:00]} Be6 {[%emt 0:05:04]} 14. O-O {[%emt 0:00:00]} Be7 {[%emt 0:02:24]} 15. Qg3 {[%emt 0:00:00]} O-O-O {[%emt 0:13:42]} 16. b4 {[%emt 0:00:00]} h5 {[%emt 0:04:02]} 17. Qf2 {[%emt 0:00:00]} g5 {[%emt 0:02:14]} 18. a4 {[%emt 0:00:00]} g4 {[%emt 0:01:56]} 19. Qe2 {[%emt 0:00:00]} Rdg8 {[%emt 0:05:16]} 20. a5 {[%emt 0:00:00]} c6 {[%emt 0:03:04]} 21. Rab1 {[%emt 0:00:00]} h4 {[%emt 0:04:20]} 22. b5 {[%emt 0:00:00]} cxb5 {[%emt 0:02:50]} 23. Bxb5 {[%emt 0:00:00]} axb5 {[%emt 0:03:25]} 24. Rxb5 {[%emt 0:00:00]} g3 {[%emt 0:01:11]} 25. Rfb1 {[%emt 0:00:00]} gxh2+ {[%emt 0:01:28]} 26. Kh1 {[%emt 0:04:31]} h3 {[%emt 0:01:08]} 27. g3 {[%emt 0:00:58]} d4 {[%emt 0:01:07]} 28. cxd4 {[%emt 0:02:03]} Bd5+ {[%emt 0:00:43]} 29. Kxh2 {[%emt 0:00:11]} Rxg3 {[%emt 0:00:45]} 30. Kxg3 {[%emt 0:00:27]} Rg8+ {[%emt 0:00:29]} 31. Bg5 {[%emt 0:00:46]} Rxg5+ {[%emt 0:00:32]} 32. Kf4 {[%emt 0:00:24]} Qf5+ {[%emt 0:00:29]} 33. Ke3 {[%emt 0:00:30]} Qe4+ {[%emt 0:00:33]} 34. Kd2 {[%emt 0:01:40]} Rg2 {[%emt 0:00:36]} 35. Qxg2 {[%emt 0:00:00]} Qxg2+ {[%emt 0:00:24]} 36. Kc3 {[%emt 0:00:00]} Qf3+ {[%emt 0:00:18]} 0-1

[Event "FIDE World Cup G12-B 2024"]
[Site "Batumi"]
[Date "2024.06.25"]
[Round "3.7"]
[White "Rusitashvili, Tea"]
[Black "Bakhshizada, Asnad"]
[Result "0-1"]
[ECO "B73"]
[WhiteElo "1535"]
[BlackElo "1748"]
[Annotator "NA RC"]
[PlyCount "71"]
[EventDate "2024.06.23"]
[EventType "swiss"]
[EventCountry "GEO"]
[SourceTitle "playchess.com"]
[Source "ChessBase"]
[SourceQuality "1"]
[TimeControl "5400+30"]

1. e4 {[%emt 0:00:03]} c5 {[%emt 0:01:11]} 2. Nf3 {[%emt 0:00:05]} d6 {[%emt 0:00:17]} 3. d4 {[%emt 0:00:13]} cxd4 {[%emt 0:00:13]} 4. Nxd4 {[%emt 0:00:16]} Nf6 {[%emt 0:00:17]} 5. Nc3 {[%emt 0:00:33]} g6 {[%emt 0:01:10]} 6. Be2 {[%emt 0:01:20]} Bg7 {[%emt 0:00:22]} 7. Be3 {[%emt 0:01:04]} O-O {[%emt 0:01:31]} 8. O-O {[%emt 0:01:01]} Nc6 {[%emt 0:01:09]} 9. Qd2 {[%emt 0:01:21]} Bd7 {[%emt 0:01:26]} 10. f4 {[%emt 0:01:44]} Rc8 {[%emt 0:11:07]} 11. Nb3 {[%emt 0:12:04]} Bg4 {[%emt 0:09:46]} 12. a3 {[%emt 0:06:06]} Bxe2 {[%emt 0:01:16]} 13. Qxe2 {[%emt 0:00:27]} a6 {[%emt 0:06:54]} 14. Rad1 {[%emt 0:03:11]} Qc7 {[%emt 0:01:08]} 15. Nd4 {[%emt 0:12:14]} e5 {[%emt 0:04:20]} 16. Nf3 {[%emt 0:01:21]} Na5 {[%emt 0:02:14]} 17. Kh1 {[%emt 0:10:03]} Nc4 {[%emt 0:01:34]} 18. Bc1 {[%emt 0:00:35]} Nxa3 {[%emt 0:08:21]} 19. Rd3 {[%emt 0:18:03]} Nc4 {[%emt 0:04:24]} 20. b3 {[%emt 0:02:24]} Nb6 {[%emt 0:00:47]} 21. Ba3 {[%emt 0:00:49]} Rfd8 {[%emt 0:00:49]} 22. fxe5 {[%emt 0:03:53]} dxe5 {[%emt 0:00:22]} 23. Rfd1 {[%emt 0:01:26]} Nh5 {[%emt 0:05:08]} 24. g3 {[%emt 0:03:04]} Nf6 {[%emt 0:02:55]} 25. Kg2 {[%emt 0:05:08]} Rxd3 {[%emt 0:05:11]} 26. Rxd3 {[%emt 0:00:22]} Bf8 {[%emt 0:01:18]} 27. Bxf8 {[%emt 0:02:58]} Kxf8 {[%emt 0:00:50]} 28. Ne1 {[%emt 0:00:33]} Rd8 {[%emt 0:01:52]} 29. Rf3 {[%emt 0:00:48]} Kg7 {[%emt 0:00:27]} 30. Qf2 {[%emt 0:00:26]} Rd6 {[%emt 0:02:06]} 31. Qe2 {[%emt 0:01:18]} Nbd7 {[%emt 0:01:14]} 32. h3 {[%emt 0:03:11]} Nf8 {[%emt 0:01:03]} 33. Nb1 {[%emt 0:00:43]} Ne6 {[%emt 0:00:24]} 34. Rd3 {[%emt 0:00:40]} Nd4 {[%emt 0:00:24]} 35. Qd2 {[%emt 0:04:26]} Nxe4 {[%emt 0:01:05]} 36. Qe2 {[%emt 0:00:17]} 0-1